fUST/lending_fUST_20250410
["ID","MTS","AMOUNT","RATE_DAILY","PERIOD"]
[357592557,1744214562444,950.0,0.00032876,120]
[357592558,1744214628745,603.07,0.00032877,120]
[357592587,1744215003174,-197.21342181,0.00016655,2]
[357592604,1744215032298,-32.41424619,0.00016655,2]
[357592605,1744215032309,-229.627668,0.00016739,2]
[357592606,1744215032318,-207.033631,0.0001703,2]
[357592607,1744215032328,-300.0,0.0001721,2]
[357592608,1744215032338,-451.76710443,0.00017211,2]
[357593200,1744215052274,-48.23289557,0.00017211,2]
[357593201,1744215052285,-500.0,0.00017211,2]
[357593202,1744215052295,-500.0,0.00017211,2]
[357593203,1744215052305,-164.97350521,0.00017211,2]
[357593204,1744215052314,-428.55714722,0.00017211,2]
[357593205,1744215052326,-71.44285278,0.00017211,2]
[357593206,1744215052336,-485.82329745,0.00017211,2]
[357593207,1744215052346,-433.04977178,0.00017211,2]
[357593208,1744215052358,-66.95022822,0.00017211,2]
[357593209,1744215052367,-225.39261244,0.00017211,2]
[357593210,1744215052377,-500.0,0.00017211,2]
[357593211,1744215052387,-126.64736981,0.00017211,2]
[357593212,1744215052399,-373.35263019,0.00017211,2]
[357593213,1744215052410,-342.22199112,0.00017211,2]
[357593214,1744215052420,-28.0235688,0.00017211,2]
[357593215,1744215052432,-413.97458267,0.00017211,2]
[357593216,1744215052639,-58.00184853,0.00017211,2]
[357593217,1744215052650,-500.0,0.00017211,2]
[357593218,1744215052661,-458.90836784,0.00017211,2]
[357593219,1744215052671,-500.0,0.00017211,2]
[357593220,1744215052680,-1999.78325758,0.00017212,2]
[357593221,1744215053818,-171.3647575,0.00016556,2]
[357593223,1744215074077,-195.25914762,0.00016518,2]
[357593225,1744215145610,-217.05282668,0.00016374,2]
[357593226,1744215157529,-250.0,0.00016373,2]
[357593227,1744215183834,-246.60455311,0.00016372,2]
[357593228,1744215188123,1035.0,0.00032876,120]
[357593229,1744215243175,-151.10456751,0.00016372,2]
[357593230,1744215246608,1000.0,0.00032,120]
[357593231,1744215260747,-148.89543249,0.00016372,2]
[357593232,1744215260772,-80.43363211,0.00016373,2]
[357593233,1744215284295,-161.44955088,0.00016373,2]
[357593234,1744215298941,-207.04093301,0.00016372,2]
[357593235,1744215298965,-59.42300066,0.00016372,2]
[357593236,1744215303119,-202.461976,0.00016371,2]
[357593237,1744215328536,5000.23177275,0.00015,2]
[357593238,1744215329168,-97.538024,0.00016371,2]
[357593239,1744215329193,-374.68652852,0.00016372,2]
[357593240,1744215343009,-65.89047082,0.00016372,2]
[357593241,1744215343039,-97.38399563,0.00016372,2]
[357593242,1744215366037,-172.63844085,0.00016371,2]
[357593243,1744215379508,-184.3913,0.00016274,2]
[357593244,1744215384456,-36.28143615,0.00016274,2]
[357593245,1744215384481,-127.36155915,0.00016371,2]
[357593246,1744215384507,-61.96303162,0.00016372,2]
[357593247,1744215425404,-245.48797287,0.00016371,2]
[357593248,1744215451226,-54.51202713,0.00016371,2]
[357593249,1744215451250,-132.393076,0.00016372,2]
[357593250,1744215483467,-224.52615328,0.00016371,2]
[357593251,1744215525484,-75.47384672,0.00016371,2]
[357593252,1744215525510,-132.61073699,0.00016372,2]
[357593253,1744215537858,-300.0,0.00016371,2]
[357593254,1744215580434,-200.00000001,0.00016371,2]
[357593255,1744215580459,-61.69449199,0.00016371,2]
[357593256,1744215603729,-300.0,0.0001637,2]
[357593257,1744215628645,-270.05515721,0.00016371,2]
[357593258,1744215635507,-175.9051293,0.00016373,2]
[357593259,1744215644414,-273.46169017,0.00016373,2]
[357593260,1744215667809,-155.17778575,0.00016372,2]
[357593261,1744215722885,-264.3595,0.00016372,2]
[357593262,1744215752435,-35.6405,0.00016372,2]
[357593263,1744215752459,-123.7228795,0.00016373,2]
[357593264,1744215759518,-156.72050417,0.00016372,2]
[357593265,1744215760057,-156.72050417,0.00016372,2]
[357593266,1744215784336,-151.10456751,0.00016371,2]
[357593267,1744215840385,-148.89543249,0.00016371,2]
[357593268,1744215840416,-20.9914332,0.00016372,2]
[357593269,1744215872863,-250.0,0.00016371,2]
[357593270,1744215877582,-273.95575854,0.00016371,2]
[357593271,1744215900795,-168.96331788,0.00015761,2]
[357593272,1744215907248,-168.60478842,0.00015761,2]
[357593273,1744215920369,-158.56468884,0.00015385,2]
[357593275,1744215964502,-169.801801,0.00015385,2]
[357593276,1744215995177,-160.0,0.00015385,2]
[357593286,1744216037305,-300.0,0.00015385,2]
[357593288,1744216085174,-230.15819044,0.00015385,2]
[357593289,1744216114152,-166.952271,0.00015065,2]
[357593290,1744216114175,-2.61409692,0.00015385,2]
[357593291,1744216143688,-156.62859419,0.00015385,2]
[357593313,1744216171746,-193.2661,0.00015385,2]
[357593319,1744216206131,3489.88312996,0.0003286,120]
[357593320,1744216206536,-164.24057411,0.00015385,2]
[357593355,1744216232454,-197.2134218,0.00015064,2]
[357593357,1744216232466,-266.1964135,0.00015385,2]
[357593359,1744216232476,-199.86227918,0.00015661,2]
[357593361,1744216232487,-300.0,0.00015758,2]
[357593363,1744216232498,-500.0,0.00015759,2]
[357593365,1744216232508,-500.0,0.00015759,2]
[357593367,1744216232519,-500.0,0.00015759,2]
[357593369,1744216232529,-500.0,0.00015759,2]
[357593371,1744216232539,-500.0,0.00015759,2]
[357593373,1744216232549,-500.0,0.00015759,2]
[357593375,1744216232559,-500.0,0.00015759,2]
[357593376,1744216232570,-457.42417443,0.00015759,2]
[357593377,1744216232580,-500.0,0.00015759,2]
[357593378,1744216232591,-500.0,0.00015759,2]
[357593379,1744216232601,-580.70029799,0.00015759,2]
[357593380,1744216232611,-346.97316914,0.00015759,2]
[357593381,1744216232629,-153.02683086,0.00015759,2]
[357593382,1744216232640,-500.0,0.00015759,2]
[357593383,1744216232650,-500.0,0.00015759,2]
[357593384,1744216232661,-19683.160317,0.00015761,2]
[357593385,1744216232671,-151.0,0.00016364,2]
[357593386,1744216232681,-24682.94717332,0.00016374,2]
[357593387,1744216232692,-641.9818793,0.00016424,2]
[357593388,1744216232702,-318.64444702,0.00016556,2]
[357593389,1744216232713,-347.6640189,0.00016731,2]
[357593390,1744216232723,-420.0,0.00017233,2]
[357593391,1744216232733,-151.0,0.00017552,2]
[357593392,1744216232743,-151.0,0.00017552,2]
[357593393,1744216232754,-151.0,0.00017552,2]
[357593394,1744216232765,-200.0,0.00017689,2]
[357593395,1744216232775,-1277.91185482,0.0001773,2]
[357593396,1744216232785,-151.0,0.00017733,2]
[357593397,1744216232795,-351.76245731,0.00018277,2]
[357593398,1744216232805,-367.29290408,0.00018277,2]
[357593399,1744216232815,-161.5638218,0.00018311,2]
[357593400,1744216232824,-8165.92967001,0.000184,2]
[357593401,1744216232835,-543.0,0.00018463,2]
[357593402,1744216232844,-706.0,0.00018463,2]
[357593403,1744216232854,-2252.0,0.00018463,2]
[357593404,1744216232863,-401.004,0.00018463,2]
[357593405,1744216232873,-401.0,0.00018463,2]
[357593406,1744216232884,-152.435931,0.00018526,2]
[357593407,1744216232893,-151.0,0.00018526,2]
[357593408,1744216232903,-151.0,0.00018526,2]
[357593409,1744216232915,-151.0,0.00018526,2]
[357593410,1744216232925,-178.077753,0.00018526,2]
[357593411,1744216232935,-248.13395,0.00018526,2]
[357593412,1744216232945,-248.13395,0.00018526,2]
[357593413,1744216232956,-151.0,0.00018526,2]
[357593414,1744216232966,-151.0,0.00018526,2]
[357593415,1744216232976,-151.0,0.00018526,2]
[357593416,1744216232986,-224.184805,0.00018526,2]
[357593417,1744216232996,-224.184805,0.00018526,2]
[357593418,1744216233010,-151.0,0.00018526,2]
[357593419,1744216233019,-156.498667,0.00018526,2]
[357593420,1744216233030,-151.0,0.00018526,2]
[357593421,1744216233043,-151.0,0.00018526,2]
[357593422,1744216233056,-159.318754,0.00018526,2]
[357593423,1744216233066,-3141.7,0.00018526,2]
[357593424,1744216233076,-3141.7,0.00018526,2]
[357593425,1744216233088,-3141.7,0.00018526,2]
[357593426,1744216233098,-3141.7,0.00018526,2]
[357593427,1744216233109,-151.586,0.00018678,2]
[357593428,1744216233119,-587.0,0.00018846,2]
[357593429,1744216233129,-20128.3757127,0.00018986,2]
[357593430,1744216233139,-158.954789,0.00018986,2]
[357593431,1744216233150,-151.0,0.00018986,2]
[357593432,1744216233161,-151.0,0.00018986,2]
[357593433,1744216233171,-248.13395,0.00018986,2]
[357593434,1744216233182,-248.13395,0.00018986,2]
[357593435,1744216233192,-151.0,0.00018986,2]
[357593436,1744216233203,-151.0,0.00018986,2]
[357593437,1744216233213,-151.0,0.00018986,2]
[357593438,1744216233223,-224.184805,0.00018986,2]
[357593439,1744216233234,-224.184805,0.00018986,2]
[357593440,1744216233244,-161.459995,0.00018986,2]
[357593441,1744216233255,-151.0,0.00018986,2]
[357593442,1744216233266,-253.7214,0.00018986,2]
[357593443,1744216233276,-151.0,0.00018986,2]
[357593444,1744216233286,-300.0,0.00019,20]
[357593445,1744216233296,-207.4,0.00019058,2]
[357593446,1744216233306,-3000.0,0.000191,2]
[357593447,1744216233316,-151.0,0.00019102,2]
[357593448,1744216233327,-3000.0,0.0001911,2]
[357593449,1744216233337,-3000.0,0.0001912,2]
[357593450,1744216233347,-3000.0,0.0001913,2]
[357593451,1744216233357,-3000.0,0.0001914,2]
[357593452,1744216233366,-3000.0,0.0001915,2]
[357593453,1744216233377,-151.0,0.0001915,2]
[357593454,1744216233388,-101.33309043,0.0001915,2]
[357593458,1744216238684,-5393.24295144,0.00015759,2]
[357593463,1744216239474,-159.36337947,0.00015759,2]
[357593469,1744216241102,-983.11459055,0.00015759,2]
[357593493,1744216243334,-410.18194505,0.00015759,2]
[357593650,1744216250745,-573.95233523,0.00015759,2]
[357593651,1744216263766,-159.17044552,0.00015758,2]
[357593652,1744216287890,-140.82955448,0.00015758,2]
[357593653,1744216287914,-23.41101963,0.00015759,2]
[357593654,1744216295574,-250.0,0.00015759,2]
[357593655,1744216303563,-238.305508,0.0001566,2]
[357593656,1744216324608,-158.5583837,0.0001566,2]
[357593657,1744216356043,-41.23365694,0.0001566,2]
[357593658,1744216356069,-109.76634306,0.00015758,2]
[357593659,1744216384501,-150.90080723,0.00015757,2]
[357593660,1744216430156,-149.09919277,0.00015757,2]
[357593661,1744216430180,-57.6669968,0.00015758,2]
[357593662,1744216443822,-190.95493405,0.00015757,2]
[357593663,1744216474352,-109.04506595,0.00015757,2]
[357593664,1744216474375,-84.11169359,0.00015758,2]
[357593665,1744216504053,-160.0,0.00015756,2]
[357593666,1744216562650,-250.0,0.00015757,2]
[357593667,1744216596573,-300.0,0.00015756,2]
[357593668,1744216596598,-60.471519,0.00015758,2]
[357593669,1744216623018,-243.8844498,0.00015755,2]
[357593670,1744216682115,-155.0,0.00015756,2]
[357593671,1744216742162,-204.0,0.00015756,2]
[357593672,1744216804901,-158.38842396,0.00015755,2]
[357593673,1744216821179,-152.394547,0.00015755,2]
[357593674,1744216837756,-287.1933,0.00015754,2]
[357593676,1744216863768,-227.88329054,0.00015753,2]
[357593677,1744216888632,202.0,0.00018,10]
[357593678,1744216920466,-210.69165395,0.000155,2]
[357593679,1744216925134,-151.10456751,0.000155,2]
[357593680,1744216953175,-159.3633804,0.00015396,2]
[357593681,1744216953198,-38.75275026,0.000155,2]
[357593682,1744216984242,-171.19814605,0.000155,2]
[357593683,1744216984271,-73.05693714,0.00015752,2]
[357593684,1744217043142,-164.9835011,0.00015752,2]
[357593685,1744217064729,15000.0,0.00015,2]
[357593686,1744217076473,-196.2234246,0.00015752,2]
[357593688,1744217086894,-159.44235699,0.000157,2]
[357593689,1744217104588,-223.89299807,0.000157,2]
[357593690,1744217104612,-31.8397411,0.00015751,2]
[357593691,1744217108047,-175.2567,0.00015621,2]
[357593694,1744217128665,-151.0,0.00015006,2]
[357593699,1744217163293,-184.0209793,0.00015006,2]
[357593700,1744217163323,-7.88446648,0.00015621,2]
[357593704,1744217195393,-177.00922822,0.00015621,2]
[357593707,1744217204016,-170.99077178,0.00015474,2]
[357593709,1744217216606,-295.92736322,0.00015474,2]
[357593710,1744217216634,-185.18988755,0.00015621,2]
[357593711,1744217223647,-250.0,0.00015621,2]
[357593712,1744217284311,-300.0,0.00015621,2]
[357593713,1744217285882,-328.00538648,0.00015621,2]
[357593714,1744217295069,-182.80942083,0.00015621,2]
[357593715,1744217314403,-41.63619934,0.00015621,2]
[357593716,1744217314435,-134.26892996,0.0001565,2]
[357593717,1744217343088,-201.14950577,0.0001565,2]
[357593718,1744217343114,-48.85049423,0.00015749,2]
[357593721,1744217402702,-154.80629526,0.00015749,2]
[357593722,1744217415088,-167.45536451,0.00015749,2]
[357593749,1744217432335,-2195.76009797,0.00015749,2]
[357593750,1744217432347,-46938.71383962,0.00015749,2]
[357593751,1744217432358,-296.34321051,0.00015749,2]
[357593752,1744217432367,-500.0,0.00015749,2]
[357593753,1744217432377,-193.71763838,0.00015749,2]
[357593754,1744217432387,-500.0,0.00015749,2]
[357593755,1744217432400,-500.0,0.00015749,2]
[357593756,1744217432409,-457.45425894,0.00015749,2]
[357593757,1744217432425,-42.54574106,0.00015749,2]
[357593758,1744217432436,-500.0,0.00015749,2]
[357593759,1744217432445,-500.0,0.00015749,2]
[357593760,1744217432454,-500.0,0.00015749,2]
[357593761,1744217432463,-500.0,0.00015749,2]
[357593764,1744217432475,-500.0,0.00015749,2]
[357593766,1744217432485,-500.0,0.00015749,2]
[357593768,1744217432495,-575.71209561,0.00015749,2]
[357593769,1744217432504,-611.68509298,0.00015749,2]
[357593770,1744217432513,-390.87247558,0.00015749,2]
[357593771,1744217432524,-500.0,0.00015749,2]
[357593772,1744217432533,-500.0,0.00015749,2]
[357593773,1744217432542,-500.0,0.00015749,2]
[357593775,1744217432552,-500.0,0.00015749,2]
[357593776,1744217432561,-500.0,0.00015749,2]
[357593778,1744217432570,-500.0,0.00015749,2]
[357593780,1744217432580,-500.0,0.00015749,2]
[357593782,1744217432589,-500.0,0.00015749,2]
[357593784,1744217432598,-500.0,0.00015749,2]
[357593786,1744217432607,-500.0,0.00015749,2]
[357593788,1744217432616,-500.0,0.00015749,2]
[357593790,1744217432626,-500.0,0.00015749,2]
[357593792,1744217432635,-500.0,0.00015749,2]
[357593794,1744217432644,-500.0,0.00015749,2]
[357593796,1744217432654,-500.0,0.00015749,2]
[357593798,1744217432663,-500.0,0.00015749,2]
[357593800,1744217432672,-500.0,0.00015749,2]
[357593802,1744217432682,-500.0,0.00015749,2]
[357593804,1744217432691,-500.0,0.00015749,2]
[357593806,1744217432701,-500.0,0.00015749,2]
[357593808,1744217432710,-500.0,0.00015749,2]
[357593809,1744217432720,-500.0,0.00015749,2]
[357593810,1744217432729,-500.0,0.00015749,2]
[357593812,1744217432739,-500.0,0.00015749,2]
[357593813,1744217432748,-500.0,0.00015749,2]
[357593814,1744217432757,-500.0,0.00015749,2]
[357593815,1744217432767,-500.0,0.00015749,2]
[357593816,1744217432777,-500.0,0.00015749,2]
[357593817,1744217432788,-500.0,0.00015749,2]
[357593818,1744217432798,-500.0,0.000158,2]
[357593819,1744217432808,-500.0,0.000158,2]
[357593820,1744217432818,-500.0,0.000158,2]
[357593821,1744217432828,-502.38353203,0.000158,2]
[357593822,1744217432838,-500.0,0.000158,2]
[357593823,1744217432847,-500.0,0.000158,2]
[357593824,1744217432857,-500.0,0.000158,2]
[357593825,1744217432867,-500.0,0.000158,2]
[357593826,1744217432877,-206.7661895,0.0001585,2]
[357593827,1744217432887,-196.3917525,0.0001662,2]
[357593828,1744217432896,-902.5681354,0.00016691,2]
[357593829,1744217432906,-24900.0,0.00017409,2]
[357593830,1744217432916,-178.73756432,0.00017538,2]
[357593831,1744217432925,-151.0,0.00017552,2]
[357593832,1744217432935,-151.0,0.00017552,2]
[357593833,1744217432945,-291.23480777,0.00017552,2]
[357593834,1744217432954,-335.41843566,0.00017971,2]
[357593835,1744217432964,-264.3595,0.00018166,2]
[357593836,1744217432974,-544.48713393,0.00018523,2]
[357593837,1744217432983,-161.5638218,0.00018575,2]
[357593838,1744217432994,-706.0,0.00018588,2]
[357593839,1744217433003,-543.0,0.00018588,2]
[357593840,1744217433013,-2252.0,0.00018588,2]
[357593841,1744217433025,-151.586,0.00018796,2]
[357593842,1744217433036,-2735.5746849,0.00019,3]
[357593843,1744217433046,-151.0,0.00019067,2]
[357593844,1744217433056,-160.0,0.00019077,2]
[357593845,1744217433066,-160.0,0.00019078,3]
[357593846,1744217433077,-837.59699578,0.00019078,3]
[357593847,1744217433088,-151.0,0.00019078,2]
[357593848,1744217433099,-151.0,0.00019078,2]
[357593849,1744217433110,-151.0,0.00019078,2]
[357593850,1744217433121,-151.0,0.00019078,2]
[357593851,1744217433131,-176.07914858,0.00019078,2]
[357593852,1744217433142,-179.347844,0.00019078,2]
[357593853,1744217433153,-179.347844,0.00019078,2]
[357593854,1744217433165,-151.0,0.00019078,2]
[357593855,1744217433175,-153.149588,0.00019078,2]
[357593856,1744217433186,-500.0,0.00019078,2]
[357593857,1744217433198,-251.71915682,0.00019078,2]
[357593858,1744217433213,-248.28084318,0.00019078,2]
[357593859,1744217433226,-500.0,0.00019078,2]
[357593860,1744217433238,-500.0,0.00019078,2]
[357593861,1744217433250,-151.0,0.00019078,2]
[357593862,1744217433262,-151.0,0.00019078,2]
[357593863,1744217433280,-198.50716,0.00019078,2]
[357593864,1744217433292,-198.50716,0.00019078,2]
[357593865,1744217433306,-198.50716,0.00019078,2]
[357593866,1744217433317,-198.50716,0.00019078,2]
[357593867,1744217433328,-151.0,0.00019078,2]
[357593868,1744217433339,-151.0,0.00019078,2]
[357593869,1744217433349,-151.0,0.00019078,2]
[357593870,1744217433359,-151.0,0.00019078,2]
[357593871,1744217433369,-269.62882945,0.00019078,2]
[357593872,1744217433380,-6580.15151837,0.00019078,2]
[357593873,1744217433393,-2464.0,0.00019078,2]
[357593880,1744217438646,-401.0,0.00018588,2]
[357593882,1744217438656,-401.0,0.00018588,2]
[357593883,1744217438666,-200.0,0.00019067,2]
[357593884,1744217438676,-1436.88522029,0.00019078,3]
[357593885,1744217438688,-7032.61754214,0.00019078,3]
[357593886,1744217438700,-3681.66136956,0.00019078,3]
[357593887,1744217438711,-4961.54133432,0.00019078,3]
[357593897,1744217438945,-4435.72620094,0.00019078,3]
[357593898,1744217438956,-21835.44570292,0.00019078,2]
[357593899,1744217438969,-3305.81447185,0.00019078,2]
[357593900,1744217438986,-590.4018084,0.00019078,2]
[357593901,1744217438998,-11511.49314176,0.00019078,2]
[357593902,1744217439011,-1601.06569073,0.00019078,2]
[357593924,1744217440733,-2270.22830648,0.00019078,2]
[357593974,1744217443516,-525.34614518,0.00019078,2]
[357593984,1744217485956,-196.2234246,0.00015748,2]
[357593988,1744217523562,-216.4552616,0.00015747,2]
[357594009,1744218053303,8540.04687004,0.00032877,120]
[357594010,1744218053325,1547.8,0.00032877,120]
[357594011,1744218053349,506.45,0.00032877,120]
[357594013,1744218319604,-186.4443479,0.00017095,2]
[357594047,1744218636467,-500.0,0.00017093,2]
[357594048,1744218636477,-500.0,0.00017093,2]
[357594049,1744218636487,-500.0,0.00017093,2]
[357594050,1744218636496,-500.0,0.00017093,2]
[357594051,1744218636506,-500.0,0.00017093,2]
[357594052,1744218636516,-500.0,0.00017093,2]
[357594053,1744218636526,-500.0,0.00017093,2]
[357594054,1744218636536,-334.56742716,0.00017093,2]
[357594055,1744218636546,-500.0,0.00017093,2]
[357594056,1744218636555,-500.0,0.00017093,2]
[357594057,1744218636565,-500.0,0.00017093,2]
[357594058,1744218636574,-500.0,0.00017093,2]
[357594059,1744218636584,-500.0,0.00017093,2]
[357594060,1744218636593,-157.57120956,0.00017093,2]
[357594061,1744218636603,-500.0,0.00017093,2]
[357594062,1744218636614,-500.0,0.00017093,2]
[357594063,1744218636624,-500.0,0.00017093,2]
[357594064,1744218636634,-500.0,0.00017093,2]
[357594065,1744218636644,-500.0,0.00017093,2]
[357594066,1744218636653,-500.0,0.00017093,2]
[357594067,1744218636663,-518.40124628,0.00017093,2]
[357594068,1744218636673,-500.0,0.00017093,2]
[357594069,1744218636683,-500.0,0.00017093,2]
[357594070,1744218636692,-10000.0,0.00017094,2]
[357594071,1744218636893,-410.5588021,0.00017095,2]
[357594072,1744218636903,-169.7800827,0.00017125,2]
[357594073,1744218636913,-250.0,0.00017371,2]
[357594074,1744218636923,-190.954934,0.00017471,2]
[357594075,1744218636933,-199.25627273,0.00017909,2]
[357594076,1744218636943,-10000.0,0.00018,2]
[357594077,1744218636952,-209.86523158,0.00018157,2]
[357594078,1744218636962,-24900.0,0.00018166,2]
[357594079,1744218636972,-191.9054458,0.00018166,2]
[357594080,1744218636982,-250.0,0.00018166,2]
[357594081,1744218636992,-30429.06414511,0.00018166,2]
[357594082,1744218637005,-893.6,0.00018166,2]
[357594085,1744218638634,-537.61027913,0.00017005,2]
[357594086,1744218638689,-881.16219247,0.00017005,2]
[357594087,1744218638699,-20247.78252459,0.00018166,2]
[357594088,1744218638709,-401.0,0.0001838,2]
[357594089,1744218638719,-401.0,0.0001838,2]
[357594090,1744218638728,-161.5638218,0.00018575,2]
[357594091,1744218638738,-301.82327978,0.00018588,2]
[357594092,1744218638750,-404.17672022,0.00018588,2]
[357594093,1744218638760,-543.0,0.00018588,2]
[357594094,1744218638769,-2252.0,0.00018588,2]
[357594095,1744218638780,-151.586,0.00018878,2]
[357594096,1744218638792,-151.0,0.00018967,2]
[357594097,1744218638804,-200.0,0.00018967,2]
[357594098,1744218638815,-627.41058054,0.00018973,2]
[357594099,1744218638825,-500.0,0.00018973,2]
[357594100,1744218638836,-500.0,0.00018973,2]
[357594101,1744218638846,-500.0,0.00018973,2]
[357594102,1744218638856,-152.79267589,0.00018973,2]
[357594103,1744218638871,-500.0,0.00018973,2]
[357594104,1744218638882,-500.0,0.00018973,2]
[357594105,1744218638891,-407.46423839,0.00018973,2]
[357594106,1744218638901,-270.2173961,0.00018973,2]
[357594107,1744218638911,-500.0,0.00018973,2]
[357594108,1744218638922,-503.09758704,0.00018973,2]
[357594109,1744218638932,-491.78487348,0.00018973,2]
[357594256,1744218646694,-8.21512652,0.00018973,2]
[357594257,1744218646704,-502.2937685,0.00018973,2]
[357594258,1744218646714,-489.49110498,0.00018973,2]
[357594259,1744218646748,-11.28003088,0.00018973,2]
[357594260,1744218646758,-488.71996912,0.00018973,2]
[357594261,1744218646770,-11.28003088,0.00018973,2]
[357594262,1744218646780,-327.52066194,0.00018973,2]
[357594263,1744218646790,-500.0,0.00018973,2]
[357594264,1744218646805,-500.0,0.00018973,2]
[357594265,1744218646816,-500.0,0.00018973,2]
[357594266,1744218646826,-1220.01197371,0.00018978,3]
[357594319,1744218677625,-202.90515104,0.00016994,2]
[357594320,1744218820047,4647.61230476,0.00031,120]
[357594323,1744218920304,5353.0,0.00018,10]
[357594324,1744219049266,-154.17,0.00016048,2]
[357594325,1744219083925,-32.2743479,0.00016048,2]
[357594326,1744219083953,-217.7256521,0.00016092,2]
[357594327,1744219100752,-82.2743479,0.00016092,2]
[357594328,1744219100780,-782.02001352,0.00016093,2]
[357594329,1744219120503,-186.4443479,0.00016092,2]
[357594330,1744219144409,-246.2234246,0.00016091,2]
[357594331,1744219166173,-53.7765754,0.00016091,2]
[357594332,1744219166200,-104.61184856,0.00016092,2]
[357594333,1744219203756,-277.7817906,0.00016091,2]
[357594334,1744219236002,-22.2182094,0.00016091,2]
[357594335,1744219236029,-277.7817906,0.00016092,2]
[357594336,1744219263294,-191.72352889,0.00015995,2]
[357594337,1744219265040,-191.72352887,0.0001609,2]
[357594338,1744219283673,-108.27647113,0.0001609,2]
[357594339,1744219283700,-624.92819811,0.00016091,2]
[357594340,1744219283737,-500.0,0.00016091,2]
[357594341,1744219283769,-45.17508123,0.00016091,2]
[357594342,1744219289510,-300.0,0.00016091,2]
[357594343,1744219297211,-154.82491877,0.00016091,2]
[357594344,1744219297244,-238.84829063,0.00016091,2]
[357594345,1744219325027,-300.0,0.00016069,2]
[357594346,1744219405818,-152.0,0.00016069,2]
[357594347,1744219424017,-166.449892,0.00016069,2]
[357594348,1744219424045,-79.371708,0.0001609,2]
[357594349,1744219429013,-166.14819177,0.0001609,2]
[357594359,1744219831008,-250.0,0.00015856,2]
[357594404,1744219834812,-246.6045531,0.00015856,2]
[357594457,1744219838067,-968.39121356,0.00015856,2]
[357594458,1744219838390,-23435.00423334,0.00015856,2]
[357594459,1744219838400,-300.0,0.00016092,2]
[357594460,1744219838410,-500.0,0.00016093,2]
[357594461,1744219838420,-500.0,0.00016093,2]
[357594462,1744219838430,-500.0,0.00016093,2]
[357594464,1744219838439,-500.0,0.00016093,2]
[357594465,1744219838449,-500.0,0.00016093,2]
[357594466,1744219838459,-500.0,0.00016093,2]
[357594468,1744219838469,-500.0,0.00016093,2]
[357594470,1744219838478,-500.0,0.00016093,2]
[357594472,1744219838488,-369.58525061,0.00016093,2]
[357594474,1744219838498,-203.84082524,0.00016093,2]
[357594476,1744219838508,-500.0,0.00016093,2]
[357594478,1744219838517,-500.0,0.00016093,2]
[357594480,1744219838528,-500.0,0.00016093,2]
[357594482,1744219838537,-500.0,0.00016093,2]
[357594484,1744219838547,-500.0,0.00016093,2]
[357594486,1744219838557,-500.0,0.00016093,2]
[357594488,1744219838567,-500.0,0.00016093,2]
[357594490,1744219838577,-500.0,0.00016093,2]
[357594492,1744219838587,-500.0,0.00016093,2]
[357594494,1744219838597,-222.20374837,0.00016093,2]
[357594496,1744219838609,-500.0,0.00016093,2]
[357594497,1744219838620,-500.0,0.00016093,2]
[357594498,1744219838630,-42181.87870126,0.00016094,2]
[357594499,1744219838642,-2106.57464412,0.00016094,2]
[357594500,1744219838660,-5711.54665462,0.00016094,2]
[357594501,1744219838670,-10000.0,0.00016095,2]
[357594502,1744219838680,-4197.6179963,0.00016564,2]
[357594503,1744219838690,-152.0,0.00016725,2]
[357594504,1744219838700,-47.09484896,0.00016994,2]